Cogmind - Beta 14 @@@ ROGUE MODE // 2025.03.10 @ 17:49:41 Player: vahar Result: Self-destructed Performance ------------- Evolutions (1) 500 Regions Visited (2) 400 Robots Destroyed (28) 140 Value Destroyed (370) 370 Prototype IDs (0) 0 Alien Tech Used (0) 0 Bonus (0) 0 TOTAL SCORE: 1410 Bonus ------- None Cogmind --------- Core Integrity 67/400 Matter 228/300 Energy 100/100 System Corruption 0% Temperature Cool (11) Movement Rolling (80) Location -9/Materials Parts ------- > --- POWER (2) -------- (None) > --- PROPULSION (2) --- Wheel > --- UTILITY (3) ------ Small Storage Unit Targeting Computer > --- WEAPON (2) ------- Light Assault Rifle Light Assault Rifle > --- INVENTORY (8) ---- Wheel Wheel Wheel Peak State ------------ > --- POWER ------------ Ion Engine > --- PROPULSION ------- Wheel Wheel > --- UTILITY ---------- Small Storage Unit Hacking Suite > --- WEAPON ----------- EM Pulse Gun Particle Gun > --- INVENTORY -------- Ion Engine Wheel Wheel Wheel Wheel Medium Laser Beam Cannon [Rating: 10] Favorites ----------- Power Ion Engine Engine Ion Engine Power Core Light Nuclear Core Propulsion Aluminum Leg Leg Aluminum Leg Wheel Wheel Utility Small Storage Unit Device Seismic Detector Storage Small Storage Unit Processor Targeting Computer Hackware Hacking Suite Weapon Medium Laser Energy Gun Medium Laser Energy Cannon Beam Cannon Ballistic Gun Assault Rifle Build | -11 -10 -9 ------- Run | Yrd Mat Mat Slots Evolved 2 | . . 2 Power 1 | . . 1 Propulsion . | . . . Utility 1 | . . 1 Weapon . | . . . Parts Attached 42 | 18 12 12 Power 11 | 4 4 3 Engine 10 | 4 3 3 Core 1 | . 1 . Reactor . | . . . Propulsion 14 | 7 2 5 Treads . | . . . Leg 3 | 3 . . Wheel 11 | 4 2 5 Hover . | . . . Flight . | . . . Utility 7 | 4 2 1 Device 1 | 1 . . Storage 3 | 3 . . Processor 2 | . 1 1 Hackware 1 | . 1 . Protection . | . . . Artifact . | . . . Weapon 10 | 3 4 3 Energy Gun 5 | 2 3 . Energy Cannon 1 | . 1 . Ballistic Gun 4 | 1 . 3 Ballistic Cannon . | . . . Launcher . | . . . Special Weapon . | . . . Impact Weapon . | . . . Slashing Weapon . | . . . Piercing Weapon . | . . . Special Melee Weapon . | . . . Unidentified Prototypes . | . . . Corrupted Parts 1 | 1 . . System Corruption 1 | 1 . . Parts Lost 14 | . 2 12 Power 5 | . 1 4 Propulsion 5 | . 1 4 Utility 1 | . . 1 Weapon 3 | . . 3 Highest Loss Streak 9 | . 1 9 To Critical Strikes . | . . . Average Slot Usage (%) 95 | . 99 73 Engine 12 | . 11 15 Core 1 | . 1 . Wheel 25 | . 27 12 Device 5 | . 6 . Storage 13 | . 14 11 Processor 5 | . 2 19 Hackware 4 | . 5 . Energy Gun 18 | . 20 11 Energy Cannon 2 | . 2 . Ballistic Gun 4 | . 4 4 Peak Build Rating 10 | 7 10 10 Average Rating 6 | 6 8 7 On Entrance 5 | . 7 8 Naked Turns . | . . . Heaviest Build 18 | 15 16 18 Greatest Support 20 | 20 20 20 Greatest Overweight (x) 4 | 1 1 4 Average Overweight (x) . | . . . Largest Inventory Capacity 8 | 8 8 8 Average Capacity 7 | 7 8 8 Most Carried 8 | 8 8 7 Average Carried 5 | 5 7 6 Final Capacity 8 | 8 8 8 Final Carried 8 | 8 8 3 Class Distribution -------------------- 99% | Mutant Dominant Class ---------------- Mutant | -10/Materials Mutant | -9/Materials Resources | -11 -10 -9 ----------- Run | Yrd Mat Mat Matter Collected 616 | 413 162 41 Remotely . | . . . Salvage Created 653 | 180 345 128 Parts 55 | 22 20 13 Haulers Intercepted . | . . . Recyclers Shooed 2 | 1 1 . Parts Field Recycled . | . . . Retrieved Matter . | . . . Parts Self-Destructed . | . . . Prevented . | . . . Kills | -11 -10 -9 ------- Run | Yrd Mat Mat Combat Hostiles Destroyed 15 | . 8 7 Guns 12 | . 8 4 AOE 3 | . . 3 Classes Destroyed 7 | 3 4 . Worker 5 | 3 1 1 Tunneler 4 | 4 . . Recycler 1 | 1 . . Operator 2 | . 2 . Watcher 1 | . 1 . Swarmer 10 | . 3 7 Grunt 5 | . 5 . Best Kill Streak 5 | 3 3 5 Combat Bots Only 4 | . 3 4 Max Kills in Single Turn 3 | 1 1 3 Gunslinging . | . . . Exploded 3 | . . 3 Melee . | . . . Uniques/NPCs Destroyed . | . . . Combat | -11 -10 -9 -------- Run | Yrd Mat Mat Hostile Shots Fired 168 | . 47 121 Missed 36 | . 14 22 Damage Taken 1356 | 6 334 1016 Core 446 | . 113 333 Absorbed by Shields . | . . . Core Remaining (%) 77 | 100 54 . Volleys Fired 83 | 24 28 31 Largest 2 | 2 2 2 Hottest 110 | 90 110 105 Shots Fired 140 | 46 53 41 Gun 139 | 46 52 41 Cannon 1 | . 1 . Launcher . | . . . Special . | . . . Kinetic 55 | 15 17 23 Thermal 59 | 22 26 11 Explosive . | . . . Electromagnetic 26 | 9 10 7 Robot Hit Streak 13 | 8 6 13 Robot Miss Streak 6 | 3 6 3 Penetration Max . | . . . Secondary Targets 1 | . 1 . Max Gunslinging Chain 1 | . 1 . Shots Hit Robots 69 | 22 23 24 Core Hits 40 | 11 17 12 Critical Kills . | . . . Critical Parts Destroyed . | . . . Critical Strikes 2 | . 2 . Burn 2 | . 2 . Melee Attacks . | . . . Impact . | . . . Slashing . | . . . Piercing . | . . . Sneak Attacks . | . . . Combat Hostiles . | . . . Follow-up Attacks . | . . . Damage Inflicted 1145 | 400 379 366 Guns 844 | 268 319 257 Cannons 18 | . 18 . Explosions 108 | . . 108 Melee . | . . . Ramming 175 | 132 42 1 Kinetic 349 | 102 119 128 Thermal 494 | 126 168 200 Explosive . | . . . Electromagnetic 127 | 40 50 37 Impact . | . . . Slashing . | . . . Piercing . | . . . Highest Corruption 1 | 1 1 . Average Corruption 1 | 1 1 . Corruption Purged . | . . . Corruption Blocked . | . . . Effects 7 | 2 5 . Message Errors 4 | 2 2 . Matter Fused 1 | . 1 . Parts Fused 1 | . 1 . Data Loss (minor) 1 | . 1 . Overload Shots . | . . . Overflow Damage 18 | . . 18 Projectiles . | . . . Explosions 18 | . . 18 Melee . | . . . Knockbacks 1 | 1 . . Impact 1 | 1 . . Kinetic . | . . . Secondary . | . . . Self-Inflicted Damage 56 | 6 19 31 Shots 1 | . . 1 Rammed 14 | 2 8 4 Targets Rammed 40 | 28 8 4 Kicked 26 | 26 . . Crushed . | . . . Highest Temperature 171 | 120 102 171 Average Temperature 41 | 32 41 52 Received Heat Transfer 225 | . 63 162 Siege Activations . | . . . Robots Corrupted . | . . . Combat Hostiles . | . . . Parts Fried . | . . . Impact Corruptions . | . . . Robots Melted . | . . . Combat Hostiles . | . . . Parts Melted 1 | . . 1 Heat Transferred 1284 | 370 592 322 Parts Sabotaged . | . . . Parts Stolen . | . . . Parts Stripped . | . . . Power Chain Reactions 1 | . . 1 Alert | -11 -10 -9 ------- Run | Yrd Mat Mat Peak Influence 172 | 15 167 172 Initial 49 | . 3 49 Average 17 | 1 92 127 Maximum Alert Level . | . . . Low Security (%) 100 | 100 100 100 Level 1 . | . . . Level 2 . | . . . Level 3 . | . . . Level 4 . | . . . Level 5 . | . . . High Security . | . . . Max Security . | . . . Squads Dispatched 2 | . 2 . Investigation 1 | . 1 . Extermination . | . . . Reinforcement 1 | . 1 . Assault . | . . . Garrison . | . . . Intercept . | . . . Searches Triggered . | . . . Construction Impeded . | . . . Haulers Reinforced . | . . . Active Scanning Responses . | . . . Cargo Convoy Interrupts . | . . . Stealth | -11 -10 -9 --------- Run | Yrd Mat Mat Distress Signals 2 | . 1 1 Communications Jammed . | . . . Distress Signals . | . . . Times Spotted 25 | . 14 11 Peak Tracking Total 8 | . 3 8 Tactical Retreats 2 | . 2 . Traps | -11 -10 -9 ------- Run | Yrd Mat Mat Traps Triggered 1 | . 1 . Indirectly . | . . . Trap Hack Attempts . | . . . Triggered . | . . . Disarmed . | . . . Reprogrammed . | . . . Reused . | . . . Traps Extracted . | . . . Installed . | . . . Triggered . | . . . Machines | -11 -10 -9 ---------- Run | Yrd Mat Mat Machines Disabled . | . . . Max in Single Turn . | . . . Machines Repaired . | . . . Machines Dismantled . | . . . Machines Sabotaged . | . . . Overloaded Fab Kills . | . . . Hacking | -11 -10 -9 --------- Run | Yrd Mat Mat Machines Accessed 7 | . 7 . Terminals 5 | . 5 . Fabricators . | . . . Repair Stations . | . . . Recycling Units 2 | . 2 . Scanalyzers . | . . . Garrison Access . | . . . Total Hacks 18 | . 18 . Successful 8 | . 8 . Failed 10 | . 10 . Catastrophic . | . . . Database Lockouts . | . . . Manual 1 | . 1 . Terminals 12 | . 12 . Fabricators . | . . . Repair Stations . | . . . Recycling Units 6 | . 6 . Scanalyzers . | . . . Garrison Access . | . . . Terminal Hacks 6 | . 6 . Emergency Access Points 3 | . 3 . Alert Level 1 | . 1 . Locate Traps 1 | . 1 . Hauler Manifests 1 | . 1 . Fabricator Hacks . | . . . Repair Station Hacks . | . . . Recycling Unit Hacks 2 | . 2 . Retrieve Components 2 | . 2 . Scanalyzer . | . . . Garrison Access Hacks . | . . . Unauthorized Hacks . | . . . Terminals . | . . . Fabricators . | . . . Repair Stations . | . . . Recycling Units . | . . . Scanalyzers . | . . . Garrison Access . | . . . Data Cores Recovered 1 | . 1 . Used . | . . . Hacking Detections 5 | . 5 . Full Trace Events . | . . . Feedback Events . | . . . Feedback Blocked . | . . . Robot Schematics Acquired . | . . . Robots Built . | . . . Authchips . | . . . Time . | . . . Total Robot Build Rating . | . . . Part Schematics Acquired . | . . . Parts Built . | . . . Authchips . | . . . Time . | . . . Total Part Build Rating . | . . . Parts Repaired . | . . . Time . | . . . Parts Recycled . | . . . Recycled Matter . | . . . Retrieved Matter . | . . . Retrieved Components 8 | . 8 . Parts Scanalyzed . | . . . Part Schematics Acquired . | . . . Parts Damaged . | . . . Bothacking | -11 -10 -9 ------------ Run | Yrd Mat Mat Used RIF Installer . | . . . Robots Hacked . | . . . Non-combat . | . . . Combat . | . . . Robot Hacks Applied . | . . . Relay Couplers Released . | . . . Fabnet Peak Effective % . | . . . Robots Rewired . | . . . Allies Hacked . | . . . Hacks Repelled . | . . . Allies | -11 -10 -9 -------- Run | Yrd Mat Mat Total Allies . | . . . Largest Group . | . . . Highest-Rated Group . | . . . Highest-Rated Ally . | . . . Total Orders . | . . . Ally Attacks . | . . . Total Damage . | . . . Kills . | . . . Allies Corrupted . | . . . Allies Melted . | . . . Intel | -11 -10 -9 ------- Run | Yrd Mat Mat Robot Analysis Total . | . . . Derelict Logs Recovered . | . . . Drone Launches . | . . . Drone Recoveries . | . . . Exploration | -11 -10 -9 ------------- Run | Yrd Mat Mat Turns Passed 5413 | 4518 742 153 Spaces Moved 3685 | 2843 772 70 Core 264 | 261 . 3 Treads . | . . . Legs 2313 | 2313 . . Wheels 1108 | 269 772 67 Hover . | . . . Flight . | . . . Fastest Speed 50 | 50 80 80 Average Speed 124 | 136 80 89 Slowest Speed 250 | 190 95 250 Overloaded Moves . | . . . Propulsion Burnouts . | . . . Robots Hopped . | . . . Cave-ins Triggered . | . . . Exploration Rate (%) 63 | 99 83 7 Regions Visited 2 Branch Regions . Pre-discovered Areas . | . . . Known Exits Taken . | . . . Unknown Exits Taken 2 | 1 1 . Scrap Searched . | . . . Spaces Dug . | . . . Terrain Destroyed 2 | . . 2 Melee . | . . . Projectile . | . . . AOE 2 | . . 2 Terrain Rammed . | . . . Walls Destroyed . | . . . Machines Disabled . | . . . Actions | -11 -10 -9 --------- Run | Yrd Mat Mat Total 4358 | 3401 839 118 Wait 490 | 479 10 1 Move 3683 | 2842 771 70 Hop . | . . . Pick Up 12 | 8 4 . Fast Attach 13 | 6 2 5 Attach 7 | 1 1 5 Detach . | . . . Swap 22 | 11 9 2 Drop 8 | 2 6 . Fire 83 | 24 28 31 Melee . | . . . Ram 14 | 2 8 4 Kick 26 | 26 . . Crush . | . . . Escape Stasis . | . . . Rewire . | . . . Trap . | . . . Miscellaneous . | . . . Route ------- -11/Scrapyard -10/Materials (discovered 4 exits: [*Mat x3] / [*Min]) -9/Materials History --------- Turn | Location | Event 14 | -11/Scrapyard | Discovered new exit (range 16) 4519 | -11/Scrapyard | Entered Materials 4520 | -10/Materials | Build established: Mutant 4627 | -10/Materials | Discovered new exit (range 11) 4648 | -10/Materials | Discovered new exit (range 14) 4876 | -10/Materials | Discovered new exit (range 10) 5220 | -10/Materials | Discovered new exit (range 7) 5261 | -10/Materials | Entered another Materials area 5261 | -9/Materials | Evolved 2 slots: Power x1, Utility x1 5371 | -9/Materials | Core integrity fell below 50% 5405 | -9/Materials | Lost 9 parts (2p3n1u3w) 5406 | -9/Materials | Core integrity fell below 20% 5414 | -9/Materials | Self-destructed Last Messages --------------- 05324_ Wheel destroyed. 05331_ EM Pulse Gun destroyed. 05336_ S-10 Pest destroyed. 05344_ Particle Gun destroyed. 05348_ Acquired Lgt. Assault Rifle. 05356_ Critical hit (Burn: +37). 05356_ Electrolysis Chamber disabled. 05362_ Critical hit (Burn: +37). 05368_ Lgt. Assault Rifle destroyed. 05369_ Slammed into S-10 Pest. 05370_ Acquired 13 matter. 05371_ Slammed into S-10 Pest. 05372_ Ion Engine destroyed. 05373_ Slammed into S-10 Pest. 05374_ Targeting Computer destroyed. 05376_ Acquired 5 matter. 05393_ Acquired Lgt. Assault Rifle. 05398_ S-10 Pest destroyed. 05405_ Wheel destroyed. 05413_ Ion Engine destroyed. Map ----- +----------------------------------------------------+ | ????????????????????????????????????????? | | ????????????????????????????????????????? | | ????????????????????????????????????????? | | ????????????????????????????????????????? | | ????????????????????????????????????????? | | ????????????????????????????????????????? | | ????????????????????????????????????????? | | ????????????????????????????????????????? | | ???????????? ?????????????????????????? | | ???????????? ?????????????????????????? | | ???????????# ???? ????????????????????? | | ???????????# ??? ??????????????????? | | ???????????# ?? ?????????????????? | | ???????????# ? ?????????????????? | | ???????????# ??????????????????? | | ???????????# "" ???????????????????? | | ???????????# "T ???????????????????? | | ???#######?# "" ?????????????????????? | | ???#"""""#?# ??????????????????????? | | ?###""T""### [ ???????????????????????? | | ?# # ######???????????????????? | | ?# =| "" # # #???????????????????? | | ?# ! Y" # !# #???????????????????? | | ## "" Y # #???????????????????? | | # """ # =#% #???????????????????? | | ##%""" =# s/@ #???????????????????? | | ?#% " # =#[ #???????????????????? | | ?# =%[ # # #???????????????????? | | ?########### # #???????????????????? | | ???????????# # #???????????????????? | | ???????????# ######???????????????????? | | ???????????# #????????????????????????? | | ???????????# #????????????????????????? | | ???????????# #????????????????????????? | | ??########## #????????????????????????? | | ??# # #????????????????????????? | | ??# # #????????????????????????? | | ??# # #????????????????????????? | | ??# # #????????????????????????? | | ??# + #????????????????????????? | | ??# # #????????????????????????? | | ??# ! # #????????????????????????? | | ??# # #????????????????????????? | | ??# #####????????????????????????? | | ??##########????????????????????????????? | | ????????????????????????????????????????? | | ????????????????????????????????????????? | | ????????????????????????????????????????? | | ????????????????????????????????????????? | | ????????????????????????????????????????? | +----------------------------------------------------+ Best States ------------- Heat Dissipation 28 Energy Generation 15 Energy Capacity 400 Matter Stores 300 Matter Capacity 300 Sight Range 16 Terrain Scan Density 10 Evasion (%) 55 Targeting Accuracy 10 Offensive Hacking 10 Item Schematics ----------------- None Robot Schematics ------------------ None Fabricated ------------ Nothing Alien Tech Used ----------------- None Achievements -------------- Shopping List Challenges ------------ None Game ------ Seed LauncherThermicActivator Manual? 0 Play Time 00:56:19 Cumulative 7.0 hours Start 2025.03.10 @ 15:01:26 End 2025.03.10 @ 17:49:41 Sessions 2 Manual Loads 0 Difficulty Rogue Special Mode None Game No. 9 Rogue 9 Adventurer 0 Explorer 0 Win Type - Total 0 Types 0/0/0/0/0/0/0/0/0 Lore% 6 Gallery% 11 Achievement% 11 Wizard Run 0 Options --------- Layout 0 ASCII 0 Keyboard 1 Movement Arrows Keybinds 0 Fullscreen 2 Font 18/X11 Map View 76x50 Zoom Use 0% Tactical HUD 1 Map Filters NONE Filters NONE Steam 1 RUN: 89d10bcf-d4bc-4398-8f8d-8d0b6e50fdd5